lending/lending_fUSD_20251124
["ID","MTS","AMOUNT","RATE_DAILY","PERIOD"]
[394786273,1763947840289,-500.0,0.00021499,2]
[394786275,1763947840298,-187.281971,0.00021499,2]
[394786277,1763947840308,-587.25907998,0.00021499,2]
[394786279,1763947840317,-500.0,0.00021499,2]
[394786281,1763947840326,-500.0,0.00021499,2]
[394786283,1763947840336,-223.11729086,0.00021499,2]
[394786285,1763947840345,-500.0,0.00021499,2]
[394786287,1763947840353,-500.0,0.00021499,2]
[394786289,1763947840362,-246.70859244,0.00021499,2]
[394786290,1763947840371,-500.0,0.00021499,2]
[394786292,1763947840380,-500.0,0.00021499,2]
[394786294,1763947840390,-500.0,0.00021499,2]
[394786296,1763947840399,-57156.95115833,0.000215,2]
[394786298,1763947840409,-220.54231541,0.000215,2]
[394786299,1763947840418,-1746.33238916,0.00021616,2]
[394786301,1763947840426,-15138.09528936,0.00021661,2]
[394786302,1763947840435,-239.0,0.00021755,2]
[394786303,1763947840444,-193.64,0.00021837,2]
[394786304,1763947840454,-4116.66663381,0.00022,2]
[394786305,1763947840463,-160.97,0.00022,2]
[394786306,1763947840473,-254.3431396,0.00022,2]
[394786307,1763947840482,-1624.47464315,0.00022001,2]
[394786308,1763947840492,-250.0,0.00022652,2]
[394786309,1763947840501,-193.64,0.00022786,2]
[394786310,1763947840511,-716.0,0.00022862,2]
[394786311,1763947840520,-250.0,0.00022976,2]
[394786312,1763947840529,-1945.0,0.00023324,2]
[394786313,1763947840539,-193.64,0.00023736,2]
[394786314,1763947840548,-193.64,0.00024685,2]
[394786315,1763947840557,-901.84764104,0.000248,3]
[394786316,1763947840566,-164.07791901,0.00025149,2]
[394786317,1763947840575,-193.64,0.00025634,2]
[394786318,1763947840584,-426.78462315,0.00025841,2]
[394786319,1763947840593,-193.64,0.00026584,2]
[394786320,1763947840602,-1318.8825,0.0002739,2]
[394786321,1763947840611,-193.64,0.00027533,2]
[394786322,1763947840620,-193.64,0.00028483,2]
[394786323,1763947840630,-200.0,0.00029057,2]
[394786324,1763947840643,-163.08,0.00029288,2]
[394786325,1763947840653,-193.64,0.00029432,2]
[394786326,1763947840663,-193.64,0.00030381,2]
[394786327,1763947840673,-164.07791901,0.000304,15]
[394786328,1763947840683,-250.0,0.00030836,2]
[394786329,1763947840693,-193.64,0.00031331,2]
[394786330,1763947840702,-193.64,0.0003228,2]
[394786331,1763947840712,-150.0,0.00032572,2]
[394786332,1763947840722,-1249.7,0.00032637,2]
[394786333,1763947840733,-225.46191026,0.00032789,3]
[394786334,1763947840742,-27759.53,0.00032799,2]
[394786335,1763947840751,-193.64,0.0003323,2]
[394786336,1763947840760,-201.02,0.00033649,2]
[394786337,1763947840769,-163.08,0.00034169,2]
[394786338,1763947840778,-193.64,0.00034179,2]
[394786339,1763947840787,-156.17,0.00034362,38]
[394786340,1763947840796,-1183.329,0.00034362,38]
[394786341,1763947840805,-1000.0,0.00034899,3]
[394786342,1763947840815,-437.07502368,0.00034999,8]
[394786343,1763947840824,-1000.0,0.00034999,3]
[394786344,1763947840833,-1000.0,0.00035026,3]
[394786345,1763947840842,-193.64,0.00035129,2]
[394786346,1763947840851,-164.07791901,0.0003565,15]
[394786347,1763947840860,-1000.0,0.00035838,3]
[394786348,1763947840869,-500.0,0.00036,14]
[394786349,1763947840879,-151.0,0.00036,10]
[394786350,1763947840889,-193.64,0.00036078,2]
[394786351,1763947840898,-225.46191026,0.0003639,4]
[394786352,1763947840909,-2000.0,0.000364,2]
[394786353,1763947840920,-211.31993203,0.00036409,10]
[394786354,1763947840931,-225.46191026,0.00036477,4]
[394786355,1763947840942,-74947.38,0.00036487,2]
[394786356,1763947840952,-500.0,0.00036509,2]
[394786357,1763947840962,-168.0,0.000367,2]
[394786358,1763947840972,-514.17,0.00036744,2]
[394786359,1763947840982,-173.0,0.0003676,120]
[394786360,1763947840991,-500.0,0.00036769,5]
[394786361,1763947841001,-1000.0,0.000368,2]
[394786362,1763947841011,-1000.0,0.0003681,2]
[394786363,1763947841022,-164.85,0.00036836,2]
[394786364,1763947841032,-1000.0,0.00036887,3]
[394786365,1763947841041,-344.25,0.00036914,2]
[394786366,1763947841052,-36556.74909574,0.00036922,2]
[394786367,1763947841062,-10552.85,0.00036922,2]
[394786368,1763947841071,-173.0,0.00036988,7]
[394786369,1763947841081,-1000.0,0.00036999,3]
[394786370,1763947841091,-1000.0,0.00036999,3]
[394786371,1763947841102,-1000.0,0.00036999,3]
[394786372,1763947841112,-1000.0,0.00036999,3]
[394786373,1763947841121,-500.0,0.00037,2]
[394786374,1763947841131,-1000.0,0.000372,10]
[394786375,1763947841141,-1000.0,0.000372,20]
[394786376,1763947841150,-1000.0,0.000372,30]
[394786377,1763947841159,-173.0,0.0003722,2]
[394786378,1763947841169,-3360.96823845,0.0003727,2]
[394786379,1763947841179,-1338.45611,0.0003727,2]
[394786380,1763947841189,-217.83804067,0.0003727,2]
[394786381,1763947841198,-173.0,0.00037292,7]
[394786382,1763947841208,-155.87,0.00037367,30]
[394786383,1763947841217,-4364.14610711,0.0003746,2]
[394786384,1763947841227,-44069.3121008,0.00037599,2]
[394786385,1763947841236,-20922.0134964,0.00037599,2]
[394786386,1763947841247,-164.18,0.000376,2]
[394786387,1763947841257,-1000.0,0.00037633,3]
[394786388,1763947841266,-500.0,0.00037642,8]
[394786389,1763947841276,-500.0,0.00037642,8]
[394786390,1763947841285,-500.0,0.00037642,8]
[394786391,1763947841294,-500.0,0.00037642,2]
[394786392,1763947841304,-944.77,0.00037643,14]
[394786393,1763947841314,-1362.33758212,0.00037643,15]
[394786394,1763947841323,-500.0,0.00037643,15]
[394786395,1763947841332,-500.0,0.00037643,15]
[394786396,1763947841342,-500.0,0.00037643,15]
[394786397,1763947841351,-500.0,0.00037643,15]
[394786398,1763947841360,-500.0,0.00037643,15]
[394786399,1763947841369,-250.0,0.00037643,15]
[394786400,1763947841379,-250.0,0.00037643,15]
[394786401,1763947841388,-250.0,0.00037643,15]
[394786402,1763947841398,-274.50469628,0.00037643,15]
[394786403,1763947841407,-500.0,0.00037643,15]
[394786404,1763947841416,-500.0,0.00037643,15]
[394786405,1763947841426,-620.0,0.00037643,15]
[394786406,1763947841435,-500.0,0.00037643,15]
[394786407,1763947841444,-500.0,0.00037643,15]
[394786408,1763947841453,-620.0,0.00037643,15]
[394786409,1763947841462,-500.0,0.00037643,15]
[394786410,1763947841472,-500.0,0.00037643,15]
[394786411,1763947841481,-500.0,0.00037643,15]
[394786412,1763947841490,-500.0,0.00037643,15]
[394786413,1763947841500,-500.0,0.00037643,15]
[394786414,1763947841511,-500.0,0.00037643,15]
[394786415,1763947841521,-500.0,0.00037643,15]
[394786416,1763947841530,-500.0,0.00037643,15]
[394786417,1763947841540,-500.0,0.00037643,15]
[394786418,1763947841549,-500.0,0.00037643,15]
[394786419,1763947841558,-500.0,0.00037643,15]
[394786420,1763947841567,-500.0,0.00037643,15]
[394786421,1763947841576,-500.0,0.00037643,15]
[394786422,1763947841586,-500.0,0.00037643,15]
[394786423,1763947841595,-500.0,0.00037643,15]
[394786424,1763947841606,-500.0,0.00037643,15]
[394786425,1763947841616,-500.0,0.00037643,15]
[394786426,1763947841626,-500.0,0.00037643,15]
[394786427,1763947841639,-500.0,0.00037643,15]
[394786428,1763947841648,-500.0,0.00037643,15]
[394786429,1763947841658,-500.0,0.00037643,15]
[394786430,1763947841667,-500.0,0.00037643,15]
[394786431,1763947841677,-500.0,0.00037643,15]
[394786432,1763947841686,-500.0,0.00037643,15]
[394786433,1763947841696,-500.0,0.00037643,15]
[394786434,1763947841705,-500.0,0.00037643,15]
[394786435,1763947841716,-500.0,0.00037643,15]
[394786436,1763947841726,-500.0,0.00037643,15]
[394786437,1763947841735,-184.66754758,0.00037643,15]
[394786438,1763947841745,-1000.0,0.00037643,2]
[394786439,1763947841754,-1000.0,0.00037643,3]
[394786440,1763947841763,-1000.0,0.00037643,3]
[394786441,1763947841772,-151.0,0.00037644,2]
[394786442,1763947841782,-200.0,0.00037644,2]
[394786443,1763947841791,-151.0,0.00037644,2]
[394786444,1763947841801,-168.0,0.00037658,2]
[394786445,1763947841810,-500.0,0.00037673,5]
[394786446,1763947841820,-500.0,0.00037673,5]
[394786447,1763947841829,-500.0,0.00037673,5]
[394786448,1763947841838,-500.0,0.00037673,5]
[394786449,1763947841847,-300.0,0.00037726,2]
[394786450,1763947841856,-150.0,0.00037726,2]
[394786451,1763947841865,-150.0,0.00037726,2]
[394786452,1763947841874,-332.86,0.00037726,2]
[394786453,1763947841884,-7457.3882469,0.00037743,2]
[394786454,1763947841894,-4364.14610704,0.00037842,2]
[394786455,1763947841903,-655.0,0.00037844,2]
[394786456,1763947841913,-352.34860525,0.00037844,2]
[394786457,1763947841922,-299.0,0.00037858,7]
[394786458,1763947841932,-1970.32,0.00037873,2]
[394786459,1763947841941,-944.77,0.00037917,14]
[394786460,1763947841951,-655.0,0.0003796,120]
[394786461,1763947841959,-200.0,0.0003802,2]
[394786462,1763947841968,-299.0,0.00038078,2]
[394786463,1763947841980,-7457.38824684,0.00038094,2]
[394786464,1763947841997,-153.0,0.00038162,2]
[394786465,1763947842009,-300.0,0.00038189,2]
[394786466,1763947842019,-944.77,0.00038191,14]
[394786467,1763947842028,-1000.0,0.000382,60]
[394786468,1763947842038,-1000.0,0.000382,80]
[394786469,1763947842047,-1000.0,0.000382,90]
[394786470,1763947842056,-500.46054612,0.00038221,5]
[394786471,1763947842066,-500.0,0.00038221,5]
[394786472,1763947842075,-4364.14610704,0.00038224,2]
[394786473,1763947842085,-5000.0,0.00038256,30]
[394786474,1763947842095,-1338.45612,0.0003827,2]
[394786475,1763947842104,-153.65470742,0.00038296,2]
[394786476,1763947842114,-150.55,0.00038346,2]
[394786477,1763947842123,-186.40966435,0.00038346,2]
[394786478,1763947842133,-1539.71117824,0.00038346,30]
[394786479,1763947842143,-500.0,0.00038355,8]
[394786480,1763947842152,-500.0,0.00038355,7]
[394786481,1763947842162,-465.79407674,0.00038355,8]
[394786482,1763947842171,-500.0,0.00038355,8]
[394786483,1763947842180,-500.0,0.00038355,8]
[394786484,1763947842190,-534.34453477,0.00038355,8]
[394786485,1763947842199,-500.0,0.00038355,8]
[394786486,1763947842209,-500.0,0.00038355,8]
[394786487,1763947842218,-500.0,0.00038355,8]
[394786488,1763947842229,-500.0,0.00038355,2]
[394786489,1763947842239,-500.0,0.00038355,8]
[394786490,1763947842249,-500.0,0.00038355,8]
[394786491,1763947842259,-160.962503,0.00038356,8]
[394786492,1763947842269,-500.0,0.00038356,8]
[394786493,1763947842279,-500.0,0.00038356,8]
[394786494,1763947842288,-500.0,0.00038356,8]
[394786495,1763947842298,-500.0,0.00038356,8]
[394786496,1763947842307,-500.0,0.00038356,8]
[394786497,1763947842317,-500.0,0.00038356,8]
[394786498,1763947842327,-500.0,0.00038356,8]
[394786499,1763947842337,-500.0,0.00038356,8]
[394786500,1763947842346,-500.0,0.00038356,8]
[394786501,1763947842359,-500.0,0.00038356,8]
[394786502,1763947842369,-500.0,0.00038356,8]
[394786505,1763947842614,-500.0,0.00038356,8]
[394786507,1763947842624,-500.0,0.00038356,8]
[394786508,1763947842635,-500.0,0.00038356,8]
[394786510,1763947842646,-500.0,0.00038356,8]
[394786511,1763947842655,-500.0,0.00038356,2]
[394786512,1763947842665,-500.0,0.00038356,8]
[394786513,1763947842684,-500.0,0.00038356,8]
[394786514,1763947842693,-404.88567991,0.00038356,8]
[394786515,1763947842702,-500.0,0.00038356,8]
[394786516,1763947842712,-500.0,0.00038356,8]
[394786517,1763947842724,-500.0,0.00038356,8]
[394786518,1763947842734,-679.24,0.00038356,8]
[394786519,1763947842743,-500.0,0.00038356,8]
[394786520,1763947842753,-500.0,0.00038356,8]
[394786521,1763947842762,-500.0,0.00038356,8]
[394786522,1763947842771,-500.0,0.00038356,8]
[394786523,1763947842780,-500.0,0.00038356,8]
[394786524,1763947842790,-500.0,0.00038356,8]
[394786525,1763947842799,-500.0,0.00038356,8]
[394786526,1763947842808,-263.92168133,0.00038356,8]
[394786527,1763947842817,-500.0,0.00038356,8]
[394786528,1763947842826,-167.586562,0.00038356,8]
[394786529,1763947842835,-500.0,0.00038356,8]
[394786530,1763947842844,-500.0,0.00038356,8]
[394786531,1763947842853,-195.17890761,0.00038356,8]
[394786532,1763947842863,-500.0,0.00038356,8]
[394786533,1763947842873,-500.0,0.00038356,8]
[394786534,1763947842887,-500.0,0.00038356,8]
[394786535,1763947842896,-500.0,0.00038356,8]
[394786536,1763947842905,-500.0,0.00038356,8]
[394786537,1763947842915,-500.0,0.00038356,8]
[394786538,1763947842924,-500.0,0.00038356,8]
[394786539,1763947842934,-500.0,0.00038356,8]
[394786540,1763947842944,-500.0,0.00038356,8]
[394786541,1763947842953,-500.0,0.00038356,8]
[394786542,1763947842963,-587.98,0.00038356,8]
[394786543,1763947842973,-500.0,0.00038356,8]
[394786544,1763947842984,-500.0,0.00038356,8]
[394786545,1763947842993,-500.0,0.00038356,8]
[394786546,1763947843003,-500.0,0.00038356,8]
[394786547,1763947843013,-500.0,0.00038356,8]
[394786548,1763947843022,-500.0,0.00038356,8]
[394786549,1763947843032,-332.03877877,0.00038356,8]
[394786550,1763947843041,-500.0,0.00038356,8]
[394786551,1763947843050,-500.0,0.00038356,8]
[394786552,1763947843059,-500.0,0.00038356,8]
[394786553,1763947843069,-529.43867004,0.00038356,8]
[394786554,1763947843082,-500.0,0.00038356,8]
[394786555,1763947843092,-500.0,0.00038356,8]
[394786556,1763947843101,-500.0,0.00038356,8]
[394786557,1763947843110,-545.57,0.00038356,8]
[394786558,1763947843120,-500.0,0.00038356,8]
[394786559,1763947843129,-500.0,0.00038356,8]
[394786560,1763947843138,-500.0,0.00038356,8]
[394786561,1763947843149,-500.0,0.00038356,8]
[394786562,1763947843158,-500.0,0.00038356,8]
[394786563,1763947843167,-500.0,0.00038356,8]
[394786564,1763947843176,-500.0,0.00038356,8]
[394786565,1763947843185,-500.0,0.00038356,8]
[394786566,1763947843194,-500.0,0.00038356,8]
[394786567,1763947843203,-500.0,0.00038356,8]
[394786568,1763947843212,-500.0,0.00038356,8]
[394786569,1763947843221,-500.0,0.00038356,8]
[394786570,1763947843232,-500.0,0.00038356,8]
[394786571,1763947843241,-500.0,0.00038356,8]
[394786572,1763947843250,-500.0,0.00038356,8]
[394786573,1763947843259,-500.0,0.00038356,8]
[394786574,1763947843268,-500.0,0.00038356,8]
[394786575,1763947843279,-500.0,0.00038356,8]
[394786576,1763947843288,-246.44169233,0.00038356,8]
[394786577,1763947843297,-610.04,0.00038356,8]
[394786579,1763947843306,-500.0,0.00038356,8]
[394786580,1763947843315,-500.0,0.00038356,8]
[394786581,1763947843324,-500.0,0.00038356,8]
[394786582,1763947843334,-500.0,0.00038356,8]
[394786583,1763947843343,-647.81332632,0.00038356,8]
[394786584,1763947843353,-500.0,0.00038356,8]
[394786585,1763947843363,-500.0,0.00038356,8]
[394786586,1763947843372,-500.0,0.00038356,8]
[394786587,1763947843382,-500.0,0.00038356,8]
[394786588,1763947843391,-500.0,0.00038356,8]
[394786589,1763947843402,-500.0,0.00038356,8]
[394786590,1763947843413,-503.93450442,0.00038356,8]
[394786591,1763947843422,-533.12889448,0.00038356,8]
[394786592,1763947843432,-505.82374926,0.00038356,8]
[394786593,1763947843441,-500.0,0.00038356,8]
[394786594,1763947843451,-505.10297248,0.00038356,8]
[394786595,1763947843460,-500.0,0.00038356,8]
[394786596,1763947843470,-500.0,0.00038356,8]
[394786597,1763947843482,-500.0,0.00038356,8]
[394786598,1763947843491,-500.0,0.00038356,8]
[394786599,1763947843501,-500.0,0.00038356,8]
[394786600,1763947843511,-611.37,0.00038356,8]
[394786601,1763947843520,-500.0,0.00038356,8]
[394786602,1763947843530,-507.38371622,0.00038356,8]
[394786603,1763947843539,-500.0,0.00038356,8]
[394786604,1763947843549,-500.0,0.00038356,8]
[394786605,1763947843559,-500.0,0.00038356,8]
[394786606,1763947843568,-500.0,0.00038356,8]
[394786607,1763947843577,-500.0,0.00038356,8]
[394786608,1763947843587,-644.85561294,0.00038356,8]
[394786609,1763947843597,-500.0,0.00038356,8]
[394786610,1763947843606,-500.0,0.00038356,8]
[394786611,1763947843615,-500.0,0.00038356,8]
[394786612,1763947843625,-589.81712656,0.00038356,8]
[394786613,1763947843638,-500.51007127,0.00038356,8]
[394786614,1763947843648,-500.0,0.00038356,8]
[394786615,1763947843657,-500.0,0.00038356,8]
[394786616,1763947843666,-500.0,0.00038356,8]
[394786617,1763947843677,-500.0,0.00038356,8]
[394786618,1763947843687,-500.0,0.00038356,8]
[394786619,1763947843697,-500.0,0.00038356,8]
[394786620,1763947843707,-500.0,0.00038356,8]
[394786621,1763947843717,-500.0,0.00038356,8]
[394786622,1763947843726,-500.0,0.00038356,8]
[394786623,1763947843737,-500.0,0.00038356,8]
[394786624,1763947843746,-500.0,0.00038356,8]
[394786625,1763947843756,-500.0,0.00038356,8]
[394786626,1763947843766,-500.0,0.00038356,8]
[394786627,1763947843775,-500.0,0.00038356,8]
[394786628,1763947843785,-500.0,0.00038356,8]
[394786629,1763947843794,-556.93106572,0.00038356,8]
[394786630,1763947843804,-500.0,0.00038356,8]
[394786631,1763947843814,-300.0,0.00038356,2]
[394786632,1763947843823,-504.57075564,0.00038356,8]
[394786633,1763947843833,-500.0,0.00038356,8]
[394786634,1763947843842,-500.0,0.00038356,8]
[394786635,1763947843852,-500.0,0.00038356,8]
[394786636,1763947843862,-270.31427972,0.00038356,8]
[394786637,1763947843871,-206.93778354,0.00038356,8]
[394786638,1763947843881,-500.0,0.00038356,8]
[394786639,1763947843890,-500.0,0.00038356,8]
[394786640,1763947843900,-506.57596285,0.00038356,8]
[394786641,1763947843910,-500.0,0.00038356,8]
[394786642,1763947843920,-500.0,0.00038356,8]
[394786643,1763947843930,-500.0,0.00038356,8]
[394786644,1763947843940,-500.0,0.00038356,8]
[394786645,1763947843950,-500.0,0.00038356,8]
[394786646,1763947843960,-500.0,0.00038356,8]
[394786647,1763947843969,-500.0,0.00038356,8]
[394786648,1763947843982,-500.0,0.00038356,8]
[394786649,1763947843991,-500.0,0.00038356,8]
[394786650,1763947844001,-500.0,0.00038356,8]
[394786651,1763947844011,-500.0,0.00038356,8]
[394786652,1763947844020,-500.0,0.00038356,8]
[394786653,1763947844031,-500.0,0.00038356,7]
[394786654,1763947844040,-500.0,0.00038356,8]
[394786655,1763947844049,-500.0,0.00038356,8]
[394786656,1763947844062,-500.0,0.00038356,8]
[394786657,1763947844072,-500.0,0.00038356,8]
[394786658,1763947844081,-500.0,0.00038356,8]
[394786659,1763947844091,-500.0,0.00038356,8]
[394786660,1763947844100,-500.0,0.00038356,8]
[394786661,1763947844110,-500.0,0.00038356,8]
[394786662,1763947844120,-500.0,0.00038356,8]
[394786663,1763947844129,-500.0,0.00038356,8]
[394786664,1763947844139,-500.0,0.00038356,8]
[394786665,1763947844148,-500.0,0.00038356,8]
[394786666,1763947844158,-500.0,0.00038356,8]
[394786667,1763947844168,-500.0,0.00038356,8]
[394786668,1763947844179,-500.0,0.00038356,8]
[394786669,1763947844188,-500.0,0.00038356,8]
[394786670,1763947844198,-500.0,0.00038356,8]
[394786671,1763947844208,-420.08536476,0.00038356,8]
[394786672,1763947844220,-500.0,0.00038356,8]
[394786673,1763947844233,-504.08916528,0.00038356,8]
[394786674,1763947844243,-500.0,0.00038356,8]
[394786675,1763947844254,-500.0,0.00038356,8]
[394786676,1763947844265,-500.0,0.00038356,8]
[394786677,1763947844275,-500.0,0.00038356,8]
[394786678,1763947844285,-500.0,0.00038356,8]
[394786679,1763947844295,-500.0,0.00038356,8]
[394786680,1763947844307,-500.0,0.00038356,8]
[394786681,1763947844318,-1000.0,0.00038356,120]
[394786682,1763947844328,-500.0,0.00038356,8]
[394786683,1763947844338,-500.0,0.00038356,8]
[394786684,1763947844349,-524.71310922,0.00038356,8]
[394786685,1763947844359,-500.0,0.00038356,8]
[394786686,1763947844369,-573.43681878,0.00038356,8]
[394786687,1763947844379,-500.0,0.00038356,8]
[394786688,1763947844390,-500.0,0.00038356,8]
[394786689,1763947844400,-500.0,0.00038356,8]
[394786690,1763947844410,-500.0,0.00038356,8]
[394786691,1763947844421,-500.0,0.00038356,8]
[394786692,1763947844432,-500.0,0.00038356,8]
[394786693,1763947844443,-500.0,0.00038356,8]
[394786694,1763947844453,-500.0,0.00038356,8]
[394786695,1763947844463,-500.0,0.00038356,8]
[394786696,1763947844473,-500.0,0.00038356,8]
[394786697,1763947844488,-500.0,0.00038356,8]
[394786698,1763947844498,-512.84402873,0.00038356,8]
[394786699,1763947844509,-500.0,0.00038356,8]
[394786700,1763947844519,-204.67884813,0.00038356,8]
[394786701,1763947844529,-198.26634226,0.00038356,8]
[394786702,1763947844539,-500.0,0.00038356,8]
[394786703,1763947844549,-500.0,0.00038356,8]
[394786704,1763947844560,-500.0,0.00038356,8]
[394786705,1763947844572,-500.0,0.00038356,8]
[394786706,1763947844583,-500.0,0.00038356,8]
[394786707,1763947844593,-500.0,0.00038356,8]
[394786708,1763947844603,-500.0,0.00038356,8]
[394786709,1763947844613,-498.0,0.00038356,8]
[394786710,1763947844626,-500.0,0.00038356,8]
[394786711,1763947844636,-500.0,0.00038356,8]
[394786712,1763947844649,-500.0,0.00038356,8]
[394786713,1763947844660,-500.0,0.00038356,2]
[394786714,1763947844670,-500.0,0.00038356,8]
[394786715,1763947844680,-500.0,0.00038356,8]
[394786716,1763947844690,-539.29,0.00038356,8]
[394786717,1763947844699,-500.0,0.00038356,8]
[394786718,1763947844709,-500.0,0.00038356,8]
[394786719,1763947844719,-500.0,0.00038356,8]
[394786720,1763947844733,-500.0,0.00038356,8]
[394786721,1763947844742,-500.0,0.00038356,8]
[394786722,1763947844751,-500.0,0.00038356,8]
[394786723,1763947844760,-500.0,0.00038356,8]
[394786724,1763947844769,-502.99,0.00038356,8]
[394786725,1763947844778,-500.0,0.00038356,8]
[394786726,1763947844787,-500.0,0.00038356,8]
[394786727,1763947844796,-500.0,0.00038356,8]
[394786728,1763947844805,-500.0,0.00038356,8]
[394786729,1763947844814,-500.0,0.00038356,8]
[394786730,1763947844823,-500.0,0.00038356,8]
[394786731,1763947844832,-500.0,0.00038356,8]
[394786732,1763947844841,-602.02,0.00038356,8]
[394786733,1763947844851,-500.0,0.00038356,8]
[394786734,1763947844860,-500.0,0.00038356,8]
[394786735,1763947844869,-502.58732633,0.00038356,8]
[394786736,1763947844878,-245.72578869,0.00038356,8]
[394786737,1763947844889,-500.0,0.00038356,8]
[394786738,1763947844898,-500.0,0.00038356,8]
[394786739,1763947844907,-500.0,0.00038356,8]
[394786740,1763947844917,-500.0,0.00038356,8]
[394786741,1763947844926,-500.0,0.00038356,8]
[394786742,1763947844936,-500.0,0.00038356,8]
[394786743,1763947844946,-500.0,0.00038356,8]
[394786744,1763947844956,-500.0,0.00038356,8]
[394786745,1763947844965,-500.0,0.00038356,8]
[394786746,1763947844974,-500.0,0.00038356,8]
[394786747,1763947844985,-457.53534142,0.00038356,8]
[394786748,1763947844995,-500.0,0.00038356,8]
[394786749,1763947845003,-500.0,0.00038356,8]
[394786750,1763947845013,-500.0,0.00038356,8]
[394786751,1763947845023,-500.0,0.00038356,8]
[394786752,1763947845032,-500.0,0.00038356,8]
[394786753,1763947845041,-500.0,0.00038356,8]
[394786754,1763947845051,-500.0,0.00038356,8]
[394786755,1763947845060,-500.0,0.00038356,8]
[394786756,1763947845069,-500.0,0.00038356,8]
[394786757,1763947845078,-500.0,0.00038356,8]
[394786758,1763947845087,-500.0,0.00038356,8]
[394786759,1763947845097,-1067.0,0.00038356,8]
[394786760,1763947845107,-500.0,0.00038356,8]
[394786761,1763947845116,-500.0,0.00038356,8]
[394786762,1763947845125,-500.0,0.00038356,8]
[394786763,1763947845135,-500.0,0.00038356,8]
[394786764,1763947845144,-500.0,0.00038356,8]
[394786765,1763947845153,-500.0,0.00038356,8]
[394786766,1763947845164,-500.0,0.00038356,8]
[394786767,1763947845173,-267.92821112,0.00038356,8]
[394786768,1763947845183,-500.0,0.00038356,8]
[394786769,1763947845192,-500.0,0.00038356,8]
[394786770,1763947845201,-500.0,0.00038356,8]
[394786771,1763947845211,-500.0,0.00038356,8]
[394786772,1763947845221,-500.0,0.00038356,8]
[394786773,1763947845232,-500.0,0.00038356,8]
[394786774,1763947845242,-500.0,0.00038356,8]
[394786775,1763947845251,-500.0,0.00038356,8]
[394786776,1763947845260,-502.51881387,0.00038356,8]
[394786777,1763947845270,-500.0,0.00038356,8]
[394786778,1763947845280,-500.0,0.00038356,8]
[394786779,1763947845290,-500.0,0.00038356,8]
[394786780,1763947845299,-500.0,0.00038356,8]
[394786781,1763947845310,-500.0,0.00038356,8]
[394786782,1763947845319,-500.0,0.00038356,8]
[394786785,1763947845330,-500.0,0.00038356,8]
[394786787,1763947845339,-500.0,0.00038356,8]
[394786788,1763947845349,-500.0,0.00038356,8]
[394786790,1763947845358,-480.80765107,0.00038356,8]
[394786792,1763947845367,-204.04269117,0.00038356,8]
[394786794,1763947845378,-500.0,0.00038356,8]
[394786796,1763947845387,-640.14,0.00038356,8]
[394786798,1763947845396,-188.41822331,0.00038356,8]